bitfinex-derivatives/quotes_ETHF0:USTF0_20250210
["timestamp","ask_amount","ask_price","bid_price","bid_amount"]
[1739208875732,4.33046016,2674.4,2673.8,3.2078]
[1739208876225,1.7165,2674.3,2673.8,3.2078]
[1739208876630,4.04144071,2674.2,2673.8,3.2078]
[1739208877440,7.24924071,2674.2,2673.4,3.2078]
[1739208877940,0.00560088,2674.1,2673.4,3.2078]
[1739208878333,4.30396389,2674.0,2673.4,3.2078]
[1739208879544,0.00560088,2674.1,2673.4,6.42622711]
[1739208879742,0.00560088,2674.1,2673.5,0.5766]
[1739208880543,3.2078,2673.9,2673.2,0.5549]
[1739208880751,4.29882781,2674.0,2673.2,0.5549]
[1739208881041,4.29882781,2673.8,2673.2,0.5549]
[1739208881263,4.29882781,2674.0,2673.2,0.5549]
[1739208881443,0.00560088,2674.1,2673.2,0.5549]
[1739208881739,4.27973623,2674.0,2673.2,0.5549]
[1739208882244,4.27973623,2674.0,2673.4,3.2078]
[1739208884935,0.74807,2672.9,2672.4,3.2078]
[1739208885246,1.86974,2673.5,2672.4,3.2078]
[1739208885247,3.2078,2673.1,2672.4,3.788]
[1739208886036,3.8963824,2673.0,2672.4,3.788]
[1739208886234,3.8963824,2673.0,2672.4,3.2078]
[1739208886441,3.2078,2672.8,2672.4,3.2078]
[1739208886642,1.1298,2672.7,2672.4,3.2078]
[1739208886838,3.2078,2673.1,2672.4,3.2078]
[1739208887039,5.19018281,2673.1,2672.4,3.2078]
[1739208887233,1.1298,2673.1,2672.4,3.2078]
[1739208887631,4.08212728,2673.0,2672.5,0.5802]
[1739208888444,1.1298,2673.1,2672.5,0.5802]
[1739208888944,3.7891,2673.4,2672.5,3.79862711]
[1739208889147,4.3325,2673.7,2672.7,3.2078]
[1739208889348,4.05088095,2673.3,2672.7,3.2078]
[1739208889645,3.89545741,2673.6,2672.7,3.2078]
[1739208890144,4.3325,2673.7,2672.7,3.2078]
[1739208890339,3.89545741,2673.6,2672.7,3.2078]
[1739208890539,3.2078,2673.1,2672.4,3.2078]
[1739208890840,1.7262,2673.0,2672.4,3.2078]
[1739208891041,5.84035196,2673.0,2672.4,3.2078]
[1739208892939,5.84035196,2673.0,2672.5,0.5657]
[1739208893439,4.9538,2673.5,2672.5,0.5657]
[1739208893641,4.9538,2673.5,2672.6,0.5525]
[1739208893947,4.9538,2673.5,2672.7,3.2078]
[1739208893948,4.02475129,2673.4,2672.7,3.2078]
[1739208895746,1.7683,2673.3,2672.7,3.2078]
[1739208896045,3.2078,2673.1,2672.4,3.2078]
[1739208896348,3.2078,2672.8,2672.4,3.2078]
[1739208896645,1.7683,2672.7,2672.4,3.2078]
[1739208897143,5.95190665,2672.7,2672.4,3.2078]
[1739208897850,5.95190665,2672.7,2672.1,3.2078]
[1739208898053,3.21842711,2672.6,2672.1,3.2078]
[1739208898543,4.12188171,2672.5,2672.1,3.2078]
[1739208899942,4.25234342,2672.6,2672.1,3.2078]
[1739208900147,4.25234342,2672.6,2672.4,3.2078]
[1739208900445,0.00561241,2672.7,2672.4,3.2078]
[1739208900648,0.00561241,2672.7,2672.5,0.5761]
[1739208900843,0.00561241,2672.7,2672.5,1.1414]
[1739208904953,1.1642,2673.7,2672.6,4.97442711]
[1739208905156,3.793,2674.4,2673.6,3.2078]
[1739208905347,0.5867,2674.2,2673.6,3.2078]
[1739208905657,4.56456781,2674.2,2673.6,3.2078]
[1739208905845,5.31227781,2674.2,2673.6,3.2078]
[1739208906045,4.56456781,2674.2,2673.6,3.2078]
[1739208906347,4.56456781,2674.2,2673.6,3.21341241]
[1739208906348,4.57018022,2674.2,2673.6,3.21341241]
[1739208906551,5.31789022,2674.2,2673.6,3.21341241]
[1739208906744,4.57018022,2674.2,2673.6,3.21341241]
[1739208907640,4.57018022,2674.2,2673.9,3.2078]
[1739208907641,3.98348022,2674.2,2673.9,3.2078]
[1739208907848,0.00561241,2674.2,2673.9,6.42622711]
[1739208908546,0.00561241,2674.2,2673.9,3.2078]
[1739208909848,0.00561241,2674.2,2673.9,6.42622711]
[1739208911457,1.1824,2675.1,2673.9,6.42622711]
[1739208911753,1.1824,2675.1,2674.4,3.2078]
[1739208912156,3.91989601,2675.0,2674.4,3.2078]
[1739208912643,3.92550842,2675.0,2674.4,3.2078]
[1739208913045,0.74766,2674.4,2673.6,3.22403952]
[1739208913252,4.9231,2674.3,2673.6,0.00561241]
[1739208913455,5.99133077,2674.3,2673.6,0.00561241]
[1739208913956,1.7153,2674.3,2673.7,3.2078]
[1739208914155,5.67078,2674.3,2673.7,3.2078]
[1739208914353,5.67078,2674.3,2673.6,0.00561241]
[1739208914354,0.74783,2673.8,2673.6,0.00561241]
[1739208914753,3.9556,2673.9,2673.6,0.00561241]
[1739208915150,3.96129724,2673.8,2673.6,0.00561241]
[1739208915552,3.2078,2673.9,2673.6,0.00561241]
[1739208915857,1.7153,2674.3,2673.6,0.00561241]
[1739208916260,3.91603232,2674.2,2673.6,6.43183952]
[1739208916653,1.7153,2674.3,2673.6,6.43183952]
[1739208917958,3.2078,2674.0,2673.6,0.00561241]
[1739208918660,4.0805006,2673.9,2673.6,0.00561241]
[1739208920155,4.9231,2674.3,2673.6,0.00561241]
[1739208920355,4.18252723,2674.2,2673.6,0.00561241]
[1739208920555,4.9231,2674.3,2673.6,0.00561241]
[1739208920752,3.93652561,2674.2,2673.6,0.00561241]
[1739208921366,3.2078,2674.0,2673.6,0.00561241]
[1739208921652,4.9231,2674.3,2673.6,0.00561241]
[1739208921853,3.89241328,2673.9,2673.6,0.00561241]
[1739208922160,3.89241328,2674.1,2673.6,0.00561241]
[1739208922357,4.9231,2674.3,2673.6,0.00561241]
[1739208922561,4.28917036,2674.0,2673.6,0.00561241]
[1739208922858,4.28917036,2674.1,2673.6,0.00561241]
[1739208923055,4.9231,2674.3,2673.6,0.00561241]
[1739208923250,4.28917036,2674.0,2673.6,0.00561241]
[1739208923457,4.28917036,2674.1,2673.6,0.00561241]
[1739208923760,4.9231,2674.3,2673.6,0.00561241]
[1739208924059,4.30680689,2674.0,2673.6,0.00561241]
[1739208924264,3.2078,2674.0,2673.6,0.00561241]
[1739208924567,4.14224425,2673.9,2673.6,0.00561241]
[1739208925468,4.9231,2674.3,2673.6,3.21341241]
[1739208925660,4.9231,2674.3,2673.7,0.5693]
[1739208927359,3.2078,2674.7,2673.9,3.2078]
[1739208927560,3.2078,2674.7,2673.7,0.5693]
[1739208927561,0.5926,2674.8,2674.2,6.42622711]
[1739208927763,0.5775,2674.9,2674.5,3.2078]
[1739208928061,0.00561241,2675.0,2674.6,3.21842711]
[1739208928256,0.00561241,2675.0,2674.6,6.42622711]
[1739208928456,0.00561241,2675.0,2674.6,3.2078]
[1739208928858,0.00561241,2675.0,2674.9,3.2078]
[1739208929365,0.00561241,2675.0,2674.9,6.42622711]
[1739208929568,0.00216223,2675.0,2674.9,6.42622711]
[1739208930059,0.00216223,2675.0,2674.9,3.2078]
[1739208930263,0.00216223,2675.0,2674.6,3.21842711]
[1739208931964,0.00216223,2675.0,2674.3,2.9226]
[1739208931965,0.00216223,2675.0,2674.9,3.21842711]
[1739208932469,0.00216223,2675.0,2674.9,9.21842711]
[1739208932664,1.1514,2675.9,2674.9,9.96592711]
[1739208932966,0.5734,2675.9,2675.5,3.2078]
[1739208935161,0.55361241,2676.0,2675.8,3.2078]
[1739208935162,0.00561241,2676.0,2675.8,3.2078]
[1739208935362,0.00561241,2676.0,2675.9,0.5771]
[1739208935566,0.00561241,2676.0,2675.9,5.47029666]
[1739208935961,0.00561241,2676.0,2675.9,6.04579666]
[1739208936869,0.00561241,2676.0,2675.9,1.1526]
[1739208937366,0.00561241,2676.0,2675.9,7.1526]
[1739208937758,0.00561241,2676.0,2675.9,1.1526]
[1739208937964,0.00561241,2676.0,2675.9,7.1526]
[1739208938765,0.00561241,2676.0,2675.9,1.1526]
[1739208939973,0.00561241,2676.0,2675.9,0.5755]
[1739208940486,0.00561241,2676.0,2675.8,3.2078]
[1739208940672,0.00561241,2676.0,2675.5,3.2078]
[1739208941368,0.00561241,2676.0,2675.8,3.2078]
[1739208942773,0.00561241,2676.0,2675.9,0.5562]
[1739208942974,0.00561241,2676.0,2675.9,1.1154]
[1739208949775,0.00561241,2676.0,2675.9,0.5562]
[1739208950174,0.00561241,2676.0,2675.8,3.2078]
[1739208954587,0.00561241,2676.0,2675.5,3.2078]
[1739208960698,0.00561241,2676.0,2675.8,3.2078]
[1739208961594,0.00561241,2676.0,2675.4,3.21341241]
[1739208962897,0.00561241,2676.0,2674.4,3.31130067]
[1739208962898,3.2078,2675.5,2674.4,3.2078]
[1739208963105,1.1561,2675.4,2674.4,3.2078]
[1739208963298,5.06485966,2675.4,2674.4,3.2078]
[1739208963703,0.74744,2675.2,2674.4,3.2078]
[1739208963894,3.2078,2675.0,2674.1,3.2078]
[1739208964201,3.2078,2675.0,2674.5,0.00561241]
[1739208964202,3.91771374,2674.9,2674.5,0.00561241]
[1739208966099,0.558,2674.8,2674.5,0.00561241]
[1739208966299,1.1671,2674.7,2674.5,0.00561241]
[1739208966601,5.10509611,2674.7,2674.5,0.00561241]
[1739208967301,8.31289611,2674.7,2674.1,3.2078]
[1739208967502,8.31289611,2674.7,2673.8,3.2078]
[1739208967696,9.06046611,2674.7,2673.8,3.2078]
[1739208968102,8.31289611,2674.7,2673.8,3.2078]
[1739208968505,3.2078,2674.4,2673.8,3.2078]
[1739208968701,3.2078,2674.4,2674.0,0.00561241]
[1739208968903,4.23354139,2674.3,2674.0,0.00561241]
[1739208969503,3.2078,2674.1,2673.3,3.21842711]
[1739208969705,0.5894,2674.0,2673.3,3.21842711]
[1739208970007,4.73760532,2674.0,2673.3,3.21842711]
[1739208970610,0.5782,2673.9,2673.2,3.2078]
[1739208970909,4.24826716,2673.8,2673.2,3.2078]
[1739208971811,7.45606716,2673.8,2673.2,3.2078]
[1739208972804,0.5534,2673.7,2673.2,3.2078]
[1739208974607,0.5782,2673.9,2673.3,3.21842711]
[1739208974811,0.5894,2674.0,2673.5,3.2078]
[1739208975616,0.5894,2674.0,2673.2,3.2078]
[1739208976117,3.2078,2673.9,2673.2,3.2078]
[1739208976712,0.5894,2674.0,2672.8,3.8084]
[1739208976713,7.85241457,2673.8,2672.8,3.8084]
[1739208976920,0.5961,2673.7,2672.8,3.8084]
[1739208977315,4.05501457,2673.6,2672.8,3.8084]
[1739208978219,0.5961,2673.7,2673.1,3.2078]
[1739208979013,4.01351566,2673.6,2673.1,3.2078]
[1739208980316,4.01351566,2673.6,2672.8,0.6006]
[1739208980317,8.96594277,2673.6,2672.4,3.21842711]
[1739208980517,3.2078,2672.5,2671.1,6.42622711]
[1739208980715,3.2078,2672.3,2671.6,0.5783]
[1739208981113,3.93571758,2672.2,2671.6,0.5783]
[1739208981419,3.2078,2672.3,2671.6,0.5783]
[1739208982719,3.2078,2672.0,2671.6,0.5783]
[1739208985115,3.2078,2671.7,2671.4,0.5682]
[1739208985419,3.2078,2671.7,2670.8,6.42622711]
[1739208985623,3.2078,2671.4,2670.8,6.42622711]
[1739208986216,3.2078,2671.4,2670.8,3.2078]
[1739208986416,3.2078,2671.4,2670.3,0.29408756]
[1739208986417,3.2078,2670.9,2669.8,3.2078]
[1739208986716,3.21842711,2671.1,2669.9,0.604]
[1739208986717,3.2078,2670.5,2669.9,0.604]
[1739208987124,3.2078,2670.9,2670.4,3.2078]
[1739208987324,3.2078,2671.2,2670.5,0.5751]
[1739208987617,3.2078,2671.2,2670.6,0.604]
[1739208988015,3.2078,2671.5,2671.0,3.2078]
[1739208988220,0.00561241,2671.8,2671.0,3.2078]
[1739208988419,0.00561241,2671.8,2671.0,3.7768]
[1739208988624,0.00561241,2671.8,2671.3,3.2078]
[1739208988815,0.00561241,2671.8,2671.4,1.1451]
[1739208993927,0.75400241,2671.8,2671.4,1.1451]
[1739208994232,7.2056953,2671.7,2670.9,1.77]
[1739208994432,7.7780953,2671.7,2670.6,6.42622711]
[1739208994634,8.3773953,2671.7,2670.7,0.5753]
[1739208995325,7.2056953,2671.7,2670.9,3.2078]
[1739208995533,3.2078,2671.7,2671.0,0.5931]
[1739208995731,0.00561241,2671.8,2671.1,1.784]
[1739208996324,0.00561241,2671.8,2671.2,3.2078]
[1739208996532,0.00561241,2671.8,2671.2,6.42622711]
[1739208996729,0.00561241,2671.8,2671.3,0.5753]
[1739208998029,0.00561241,2671.8,2671.5,6.42622711]
[1739208998232,0.00561241,2671.8,2671.6,0.5504]
[1739208998424,0.00561241,2671.8,2671.7,0.5927]
[1739208998622,3.2078,2672.3,2671.7,0.5927]
[1739208998831,3.2078,2672.3,2671.8,8.20722711]
[1739208999130,0.5568,2673.1,2672.1,3.21842711]
[1739208999334,3.7698,2673.2,2672.1,3.21842711]
[1739208999335,3.2078,2673.2,2672.4,6.42622711]
[1739208999939,0.00561241,2673.1,2672.5,0.00561241]
[1739209001442,0.00561241,2673.1,2672.7,3.2078]
[1739209001634,3.2078,2673.8,2673.0,6.42622711]
[1739209002235,3.2078,2673.8,2672.8,0.6018]
[1739209002435,3.98759968,2673.7,2672.8,0.6018]
[1739209002634,3.2078,2673.5,2672.8,0.6018]
[1739209002838,3.2078,2673.2,2672.5,0.00561241]
[1739209003133,3.2078,2672.6,2672.5,0.00561241]
[1739209003538,7.3224266,2672.6,2672.5,0.00561241]
[1739209004936,8.0705766,2672.6,2672.5,0.00561241]
[1739209005141,8.0705766,2672.6,2671.9,0.6018]
[1739209005438,3.2078,2672.1,2671.7,0.5852]
[1739209005842,3.2078,2672.4,2671.7,0.5852]
[1739209006236,7.25433132,2672.4,2671.8,0.00561241]
[1739209006836,3.2078,2672.1,2671.8,0.00561241]
[1739209007948,4.30588248,2672.0,2671.8,0.00561241]
[1739209008243,0.5487,2671.9,2671.8,0.00561241]
[1739209008448,1.1441,2671.9,2671.8,0.00561241]
[1739209008640,5.44998248,2671.9,2671.8,0.00561241]
[1739209008837,5.44998248,2671.9,2670.9,4.9878]
[1739209009045,3.2078,2671.5,2670.9,3.2078]
[1739209009437,4.2841171,2671.4,2670.9,3.2078]
[1739209010346,4.2841171,2671.4,2670.8,0.5917]
[1739209010547,3.2078,2671.2,2670.8,0.5917]
[1739209011649,3.2078,2671.2,2670.7,0.5837]
[1739209014250,0.5725,2671.3,2670.7,0.5837]
[1739209015139,3.2078,2671.5,2671.0,0.00584264]
[1739209018549,4.75106908,2671.4,2671.0,0.00584264]
[1739209020044,3.2078,2671.2,2671.0,0.00584264]
[1739209020445,4.28803062,2671.1,2671.0,0.00584264]
[1739209020653,4.28803062,2671.1,2670.4,0.5697]
[1739209020853,3.2078,2670.9,2670.4,0.5697]
[1739209021455,3.2078,2670.9,2670.0,1.119]
[1739209021456,4.69260333,2670.8,2670.0,1.119]
[1739209021751,0.6052,2670.7,2670.0,1.119]
[1739209021950,3.2078,2670.6,2670.0,1.119]
[1739209022547,4.22260343,2670.5,2670.0,1.119]
[1739209023153,3.2078,2670.6,2670.0,1.119]
[1739209023553,0.00561241,2670.7,2670.0,4.3268]
[1739209023751,0.00561241,2670.7,2670.0,7.54522711]
[1739209023948,0.00561241,2670.7,2670.3,3.2078]
[1739209024155,0.00561241,2670.7,2670.6,3.2078]
[1739209024451,3.2078,2671.7,2670.6,6.42622711]
[1739209024650,5.90482711,2672.0,2670.9,3.2078]
[1739209024651,1.1959,2671.9,2670.9,3.2078]
[1739209024861,4.04804347,2671.6,2670.9,6.42622711]
[1739209025158,1.1959,2671.9,2671.2,3.2078]
[1739209025355,1.1959,2671.9,2671.3,1.1112]
[1739209025546,0.5972,2671.9,2671.3,1.1112]
[1739209025751,0.60281241,2671.9,2671.3,1.11681241]
[1739209026662,3.2078,2671.6,2671.3,0.00561241]
[1739209027357,3.96197837,2671.5,2671.3,0.00561241]
[1739209027557,0.5825,2671.8,2671.3,0.00561241]
[1739209029359,0.00561241,2671.9,2671.4,3.95627]
[1739209029665,0.00561241,2671.9,2671.3,1.77061241]
[1739209029666,0.00561241,2671.9,2671.7,3.2078]
[1739209030065,0.00561241,2671.9,2671.5,4.39572711]
[1739209030255,0.00561241,2671.9,2671.7,3.2078]
[1739209031064,3.2078,2672.6,2671.7,9.2078]
[1739209031263,3.2078,2672.6,2671.8,3.21842711]
[1739209032269,0.00561241,2672.5,2672.0,3.2078]
[1739209032461,3.2078,2672.6,2672.1,4.98142711]
[1739209032666,3.2078,2673.4,2672.5,3.2078]
[1739209033072,7.44667404,2673.4,2672.5,3.2078]
[1739209033671,0.00561241,2673.2,2672.7,0.00561241]
[1739209033873,0.00561241,2673.2,2672.8,4.9718]
[1739209034174,0.00561241,2673.2,2672.8,5.5676]
[1739209034871,0.00561241,2673.2,2673.0,3.21842711]
[1739209035176,0.00561241,2673.2,2672.8,5.5676]
[1739209035476,0.00561241,2673.2,2672.8,2.3598]
[1739209035873,0.00561241,2673.2,2672.8,0.5958]
[1739209036069,4.12249527,2673.1,2672.7,0.00561241]
[1739209036379,0.5791,2673.0,2672.7,0.00561241]
[1739209036771,4.12249527,2672.9,2672.7,0.00561241]
[1739209037174,0.5791,2673.0,2672.7,0.00561241]
[1739209037373,0.5791,2673.0,2671.8,0.74836]
[1739209037374,3.2078,2672.9,2671.8,3.21842711]
[1739209037566,3.2078,2672.9,2671.7,3.8036]
[1739209037567,3.2078,2672.6,2671.7,3.8036]
[1739209038076,3.2078,2672.3,2671.7,3.8036]
[1739209038380,0.5775,2672.2,2671.7,3.8036]
[1739209038573,0.5775,2672.2,2671.7,3.80921241]
[1739209039080,3.2078,2672.6,2671.7,3.80921241]
[1739209039266,3.2078,2672.6,2671.8,3.21842711]
[1739209039466,3.2078,2672.6,2671.7,3.80921241]
[1739209042481,0.5775,2672.8,2672.0,3.2078]
[1739209042874,0.5775,2672.8,2672.1,0.5519]
[1739209043376,0.5775,2672.8,2672.4,3.2078]
[1739209043578,3.21341241,2673.2,2672.7,3.2078]
[1739209043783,3.21341241,2673.2,2672.8,3.21842711]
[1739209043985,3.21341241,2673.2,2672.8,0.6005]
[1739209044381,0.00561241,2673.2,2672.8,0.6005]
[1739209045176,0.00561241,2673.2,2673.0,3.2078]
[1739209045378,3.7728,2674.0,2673.1,4.97642711]
[1739209045681,0.6054,2674.1,2673.4,3.2078]
[1739209045876,3.2078,2674.3,2673.4,6.42622711]
[1739209046378,3.2078,2674.3,2673.4,3.2078]
[1739209046379,3.92499708,2674.2,2673.4,3.2078]
[1739209046680,0.00561241,2674.1,2673.6,0.00561241]
[1739209047185,3.2078,2673.9,2673.6,0.00561241]
[1739209049778,0.00561241,2674.1,2673.6,0.00561241]
[1739209052081,3.2078,2673.9,2673.6,0.00561241]
[1739209052480,4.86845564,2673.8,2673.6,0.00561241]
[1739209052679,5.44225564,2673.8,2673.6,0.00561241]
[1739209053985,0.00561241,2674.1,2673.6,0.00561241]
[1739209055286,0.00561241,2674.1,2673.7,6.42622711]
[1739209055483,0.00561241,2674.1,2673.8,0.5593]
[1739209055790,0.00561241,2674.1,2673.9,0.5888]
[1739209057999,0.00561241,2674.1,2674.0,6.42622711]
[1739209058492,3.2078,2675.0,2674.0,12.42622711]
[1739209058787,3.2078,2675.0,2673.9,1.147]
[1739209058788,1.1412,2675.1,2674.3,6.42622711]
[1739209059486,0.00561241,2675.0,2674.3,6.42622711]
[1739209060589,3.21341241,2675.0,2674.3,6.42622711]
[1739209060793,3.21341241,2675.0,2674.3,3.2078]
[1739209061095,3.2078,2674.7,2674.3,3.2078]
[1739209061892,3.2078,2674.7,2674.0,1.754]
[1739209062093,3.2078,2674.4,2674.0,1.754]
[1739209063192,0.6032,2674.6,2674.0,1.754]
[1739209063688,4.19089639,2674.5,2674.0,1.754]
[1739209063888,3.2078,2674.4,2674.0,1.754]
[1739209064088,3.7762,2674.4,2674.0,1.754]
[1739209066195,0.5684,2674.4,2674.0,1.754]
[1739209066700,0.5684,2674.4,2673.9,0.5888]
[1739209067903,3.7762,2674.4,2673.9,0.5888]
[1739209069599,3.2078,2674.0,2673.6,0.00561241]
[1739209070003,3.9622599,2673.9,2673.6,0.00561241]
[1739209070810,3.7792,2674.3,2673.6,0.00561241]
[1739209070998,0.5714,2674.3,2673.6,0.00561241]
[1739209071199,4.31687345,2674.2,2673.6,0.00561241]
[1739209073300,0.74773,2674.1,2673.6,0.00561241]
[1739209073507,3.2078,2673.8,2673.6,0.00561241]
[1739209074509,4.03476912,2673.7,2673.6,0.00561241]
[1739209074702,4.03476912,2673.7,2672.8,0.6023]
[1739209074899,3.2078,2673.1,2672.6,0.6186471]
[1739209075095,3.2078,2673.4,2672.6,0.6186471]
[1739209075300,0.5649,2673.3,2672.6,0.6186471]
[1739209075500,4.87798732,2673.3,2672.6,0.6034]
[1739209075903,0.00561241,2673.2,2672.7,0.00561241]
[1739209078004,0.00561241,2673.2,2672.8,6.42622711]
[1739209080306,0.00561241,2673.2,2672.7,0.00561241]
[1739209080505,3.2078,2672.8,2672.7,0.00561241]
[1739209080710,3.2078,2672.8,2671.6,3.21842711]
[1739209080897,3.2078,2672.8,2672.1,3.2078]
[1739209080898,0.5565,2672.7,2672.1,3.2078]
[1739209081308,0.5565,2672.7,2672.2,3.21842711]
[1739209081502,4.3237,2673.1,2672.2,3.21842711]
[1739209081699,0.5594,2673.1,2672.4,3.2078]
[1739209082708,0.00561241,2673.2,2672.7,3.2078]
[1739209083106,0.00561241,2673.2,2673.0,3.2078]
[1739209083310,0.00561241,2673.2,2673.1,3.21842711]
[1739209083501,3.2078,2674.0,2673.1,3.21842711]
[1739209083707,4.9768,2674.3,2673.5,3.2078]
[1739209084109,4.28508058,2674.2,2673.5,3.2078]
[1739209084407,4.28508058,2674.2,2673.5,3.7856]
[1739209084611,0.00561241,2674.1,2673.6,0.00561241]
[1739209086208,0.00561241,2674.1,2673.8,3.2078]
[1739209086610,3.2078,2674.9,2673.8,3.2078]
[1739209086611,3.2078,2674.9,2674.0,3.21842711]
[1739209086912,3.2078,2674.9,2674.3,3.2078]
[1739209087114,3.2078,2674.9,2674.1,0.5836]
[1739209087611,3.2078,2675.3,2674.3,3.21842711]
[1739209087914,0.00561241,2674.8,2674.5,3.2078]
[1739209089310,0.00561241,2674.8,2674.5,3.2045843]
[1739209089917,0.00561241,2674.8,2674.6,0.5783]
[1739209091916,0.00561241,2674.8,2674.2,3.2078]
[1739209092117,3.2078,2674.3,2673.7,3.77412711]
[1739209092320,3.2078,2674.3,2673.7,0.5557]
[1739209092517,3.96190924,2674.2,2673.7,0.5557]
[1739209093619,3.2078,2673.9,2673.7,0.5557]
[1739209093917,3.7691,2674.2,2673.7,0.5557]
[1739209094416,3.2078,2674.2,2673.7,3.77412711]
[1739209094723,3.2078,2674.5,2673.8,3.2078]
[1739209095217,4.25404481,2674.4,2673.8,3.2078]
[1739209096512,4.25404481,2674.4,2673.7,3.77412711]
[1739209096723,0.5457,2674.3,2673.7,3.77412711]
[1739209097120,3.2078,2674.2,2673.7,0.5557]
[1739209097320,7.32461453,2674.2,2673.7,0.5557]
[1739209097520,3.2078,2673.9,2673.6,0.00561241]
[1739209097722,0.74784,2673.7,2673.6,0.00561241]
[1739209097929,3.95559,2673.9,2673.6,0.00561241]
[1739209098120,3.2078,2673.9,2673.6,0.00561241]
[1739209098427,3.2078,2673.9,2672.8,3.78902711]
[1739209098428,7.44801889,2673.8,2672.5,3.21842711]
[1739209098623,3.2078,2673.4,2672.5,6.08412711]
[1739209098828,3.2078,2673.5,2672.5,6.08412711]
[1739209099020,3.95579,2673.2,2672.5,1.1127]
[1739209099227,3.7639,2673.1,2672.5,1.1127]
[1739209099425,7.99305604,2673.1,2672.5,1.1127]
[1739209099730,3.76951241,2673.1,2672.5,1.11831241]
[1739209099932,4.22915604,2673.0,2672.5,1.11831241]
[1739209100130,4.22915604,2673.0,2672.5,0.55751241]
[1739209101631,7.43695604,2673.0,2672.5,0.00561241]
[1739209101827,8.01375604,2673.0,2672.5,0.00561241]
[1739209102240,3.2078,2672.7,2672.5,0.00561241]
[1739209104642,4.31601883,2672.6,2672.5,0.00561241]
[1739209104836,4.90621883,2672.6,2672.5,0.00561241]
[1739209105141,5.65436883,2672.6,2672.5,0.00561241]
[1739209105435,4.90621883,2672.6,2672.5,0.00561241]
[1739209106741,5.65436883,2672.6,2672.5,0.00561241]
[1739209108135,14.18749304,2672.6,2671.6,0.5923]
[1739209108334,3.2078,2672.1,2671.6,0.5923]
[1739209108539,3.9561,2672.1,2671.6,0.5923]
[1739209108742,4.14130706,2672.0,2671.6,0.5923]
[1739209108943,7.34910706,2672.0,2671.6,0.5923]
[1739209109338,7.34910706,2672.0,2671.5,0.00561241]
[1739209110340,0.5791,2671.9,2671.5,0.00561241]
[1739209110739,3.2078,2671.6,2671.5,0.00561241]
[1739209110938,4.18568516,2671.8,2671.5,0.00561241]
[1739209111138,3.7869,2671.9,2671.5,0.00561241]
[1739209111339,4.31517934,2671.8,2671.5,0.00561241]
[1739209115642,3.2078,2671.7,2671.5,0.00561241]
[1739209115847,4.31517934,2671.8,2671.5,0.00561241]
[1739209116045,0.5791,2671.9,2671.5,0.00561241]
[1739209116239,4.19905756,2671.8,2671.5,0.00561241]
[1739209116441,4.19905756,2671.8,2671.6,3.21842711]
[1739209116646,3.2078,2672.3,2671.6,3.21842711]
[1739209117141,3.2078,2672.3,2671.9,3.21842711]
[1739209117343,3.2078,2672.3,2672.0,1.1775]
[1739209118448,0.74826,2672.2,2671.5,0.00561241]
[1739209118740,1.12267,2671.5,2670.6,3.21842711]
[1739209118949,3.2078,2671.2,2670.7,0.5907]
[1739209119743,3.21341241,2671.2,2670.7,0.5907]
[1739209119948,3.21341241,2671.2,2670.7,0.59631241]
[1739209121352,3.2078,2670.8,2670.7,0.00561241]
[1739209122347,3.95645,2670.8,2670.7,0.00561241]
[1739209122552,7.31112988,2670.8,2670.2,0.5868]
[1739209122851,3.2078,2670.7,2670.2,0.5868]
[1739209123250,4.32574942,2670.6,2670.2,0.5868]
[1739209124048,3.2078,2671.0,2670.2,0.5868]
[1739209125050,3.2078,2670.7,2670.2,0.5868]
[1739209125851,4.05624297,2670.6,2670.2,0.5868]
[1739209127953,3.2078,2670.7,2670.2,0.5868]
[1739209128951,3.2078,2671.0,2670.3,3.2078]
[1739209129853,0.00561241,2671.2,2670.6,3.2078]
[1739209130461,3.2078,2671.1,2670.3,3.2078]
[1739209131256,3.2078,2671.1,2670.3,3.7642]
[1739209132359,0.00561241,2671.2,2671.0,3.2078]
[1739209132664,1.1923,2672.4,2671.3,0.74849]
[1739209132964,1.1923,2672.4,2671.5,3.2078]
[1739209133866,0.00561241,2672.2,2671.7,0.00561241]
[1739209134966,3.21341241,2672.2,2671.7,0.00561241]
[1739209135273,3.2078,2671.9,2671.7,0.00561241]
[1739209135760,3.97444585,2671.8,2671.7,0.00561241]
[1739209136960,3.97444585,2671.8,2670.8,3.21842711]
[1739209137160,3.2078,2671.5,2670.8,3.21842711]
[1739209137456,3.2078,2671.5,2670.7,3.2078]
[1739209137767,3.2078,2671.2,2670.7,3.2078]
[1739209137965,3.2078,2671.2,2670.5,3.21842711]
[1739209138165,3.2078,2670.9,2670.2,4.98042711]
[1739209138367,3.2078,2670.9,2670.2,3.21842711]
[1739209138661,4.01038513,2670.8,2670.2,3.21842711]
[1739209139467,0.00561241,2670.8,2670.2,3.21842711]
[1739209142270,0.00561241,2670.8,2670.1,3.7821]
[1739209142271,0.00561241,2670.8,2670.1,0.5743]
[1739209142565,3.2078,2670.6,2670.1,0.5743]
[1739209142963,4.29697465,2670.5,2670.1,0.5743]
[1739209143559,3.2078,2670.3,2669.6,4.97742711]
[1739209143765,3.2078,2670.3,2669.6,3.21842711]
[1739209144065,3.2078,2670.3,2669.6,6.42622711]
[1739209144463,3.9566,2670.3,2669.3,3.21842711]
[1739209144663,4.79002452,2670.2,2669.3,3.21842711]
[1739209147064,4.79002452,2670.2,2669.6,3.21842711]
[1739209147065,4.19972452,2670.2,2669.6,3.21842711]
[1739209147369,3.7664,2670.6,2669.9,3.21842711]
[1739209147566,0.5684,2670.7,2669.9,3.21842711]
[1739209147768,0.5684,2670.7,2669.9,3.77442711]
[1739209148070,0.00561241,2670.8,2670.2,3.96723711]
[1739209148375,0.00561241,2670.8,2670.5,3.21842711]
[1739209148767,0.00561241,2670.8,2670.5,3.81872711]
[1739209148966,4.16062982,2670.7,2669.9,3.77442711]
[1739209149163,3.2078,2670.5,2669.9,0.6003]
[1739209149467,4.32660444,2670.4,2669.9,0.6003]
[1739209149773,3.2078,2670.5,2669.9,3.81872711]
[1739209150469,0.5684,2670.6,2669.9,3.81872711]
[1739209150864,3.21341241,2670.8,2670.2,3.21842711]
[1739209151271,0.00561241,2670.8,2670.2,3.21842711]
[1739209159374,0.00561241,2670.8,2670.2,3.96723711]